Cogmind - Beta 14 @@@ ROGUE MODE // 2024.10.16 @ 13:56:05 Player: carterz30cal Result: Destroyed by D-53 Grenadier with Mini Grenade Launcher Performance ------------- Evolutions (1) 500 Regions Visited (4) 800 Robots Destroyed (77) 385 Value Destroyed (1894) 1894 Prototype IDs (4) 80 Alien Tech Used (0) 0 Bonus (74) 74 TOTAL SCORE: 3733 Bonus ------- High Alert Combat Kills 74 Cogmind --------- Core Integrity 0/400 Matter 218/300 Energy 64/250 System Corruption 0% Temperature Cool (44) Movement Core (550) Ox10 Location -9/Mines Parts ------- > --- POWER (1) -------- Ion Engine > --- PROPULSION (4) --- (None) > --- UTILITY (2) ------ Large Storage Unit > --- WEAPON (2) ------- Advanced Beam Cannon Advanced Beam Cannon > --- INVENTORY (15) --- Light Treads Medium Matter Pod (100) Medium Matter Pod (100) Advanced Visual Processing Unit Light Armor Plating Advanced Beam Cannon Advanced Beam Cannon Improved Light Cannon Improved Light Cannon Grenade Launcher Peak State ------------ > --- POWER ------------ Heavy Ion Engine > --- PROPULSION ------- Light Treads Light Treads Light Treads Light Treads > --- UTILITY ---------- Improved Heat Sink Large Storage Unit > --- WEAPON ----------- Advanced Beam Cannon Advanced Beam Cannon > --- INVENTORY -------- Ion Engine Light Treads Light Treads Medium Matter Pod Medium Matter Pod Advanced Visual Processing Unit Light Armor Plating Advanced Beam Cannon Advanced Beam Cannon Improved Light Cannon Improved Light Cannon Grenade Launcher Grenade Launcher Grenade Launcher Rocket Launcher [Rating: 19] Favorites ----------- Power Ion Engine Engine Ion Engine Propulsion Light Treads Treads Light Treads Utility Large Storage Unit Device Structural Scanner Storage Large Storage Unit Protection Light Armor Plating Weapon Light Cannon Energy Gun Small Laser Energy Cannon Advanced Beam Cannon Ballistic Cannon Light Cannon Launcher Grenade Launcher Build | -11 -10 -10 -9 -9 ------- Run | Yrd Mat Min Mat Min Slots Evolved 2 | . . . 2 . Power . | . . . . . Propulsion 2 | . . . 2 . Utility . | . . . . . Weapon . | . . . . . Parts Attached 56 | 6 8 8 26 8 Power 13 | 1 3 1 7 1 Engine 13 | 1 3 1 7 1 Core . | . . . . . Reactor . | . . . . . Propulsion 16 | 2 1 1 11 1 Treads 16 | 2 1 1 11 1 Leg . | . . . . . Wheel . | . . . . . Hover . | . . . . . Flight . | . . . . . Utility 7 | 1 2 . 3 1 Device 4 | . 1 . 2 1 Storage 2 | 1 1 . . . Processor . | . . . . . Hackware . | . . . . . Protection 1 | . . . 1 . Artifact . | . . . . . Weapon 20 | 2 2 6 5 5 Energy Gun 2 | 2 . . . . Energy Cannon 6 | . . . 4 2 Ballistic Gun . | . . . . . Ballistic Cannon 6 | . 2 3 1 . Launcher 6 | . . 3 . 3 Special Weapon . | . . . . . Impact Weapon . | . . . . . Slashing Weapon . | . . . . . Piercing Weapon . | . . . . . Special Melee Weapon . | . . . . . Unidentified Prototypes 2 | . . . 2 . Parts Lost 10 | . . . . 10 Power 1 | . . . . 1 Propulsion 5 | . . . . 5 Utility 1 | . . . . 1 Weapon 3 | . . . . 3 Highest Loss Streak 10 | . . . . 10 To Critical Strikes . | . . . . . Average Slot Usage (%) 99 | . 98 100 100 96 Engine 12 | . 14 14 11 11 Treads 36 | . 28 28 44 41 Device 9 | . 12 14 6 11 Storage 12 | . 14 14 11 11 Protection 2 | . . . 4 . Energy Gun 1 | . 4 . . . Energy Cannon 6 | . . . 11 17 Ballistic Cannon 14 | . 23 9 10 . Launcher 2 | . . 18 . 4 Peak Build Rating 19 | 6 8 9 17 19 Average Rating 10 | 5 7 8 12 17 On Entrance 7 | . 6 8 8 17 Naked Turns . | . . . . . Heaviest Build 37 | 13 33 33 37 37 Greatest Support 80 | 40 40 40 80 80 Greatest Overweight (x) . | . . . . . Average Overweight (x) . | . . . . . Largest Inventory Capacity 15 | 8 15 15 15 15 Average Capacity 14 | 7 14 15 15 15 Most Carried 15 | 1 14 15 15 15 Average Carried 12 | . 8 14 14 14 Final Capacity 15 | 8 15 15 15 15 Final Carried 15 | 1 14 14 15 10 Class Distribution -------------------- 56% | Mutant 43% | Scavenger-Mutant Dominant Class ---------------- Mutant | -10/Materials Mutant | -10/Mines Scavenger-Mutant | -9/Materials Scavenger-Mutant | -9/Mines Resources | -11 -10 -10 -9 -9 ----------- Run | Yrd Mat Min Mat Min Matter Collected 1909 | 260 742 231 636 40 Remotely . | . . . . . Salvage Created 2678 | 27 593 277 1588 193 Parts 161 | 1 46 15 90 9 Haulers Intercepted 8 | . 2 . 6 . Recyclers Shooed 3 | . . . 2 1 Parts Field Recycled . | . . . . . Retrieved Matter . | . . . . . Parts Self-Destructed . | . . . . . Prevented . | . . . . . Kills | -11 -10 -10 -9 -9 ------- Run | Yrd Mat Min Mat Min Combat Hostiles Destroyed 67 | . 9 9 31 18 Cannons 49 | . 9 5 31 4 AOE 18 | . . 4 . 14 Classes Destroyed 12 | 1 8 . 2 1 Worker 3 | . 3 . . . Builder 4 | . 3 . 1 . Tunneler 2 | 1 . 1 . . Hauler 8 | . 2 . 6 . Recycler 4 | . 1 1 2 . Mechanic 1 | . 1 . . . Watcher 3 | . 1 . 2 . Swarmer 9 | . 3 3 3 . Grunt 37 | . 6 6 21 4 Duelist 1 | . . . 1 . Sentry 6 | . . . 6 . Assembled 14 | . . . . 14 Best Kill Streak 14 | 1 5 3 5 14 Combat Bots Only 14 | . 5 3 4 14 Max Kills in Single Turn 9 | 1 2 2 1 9 Gunslinging . | . . . . . Exploded 9 | . . 2 . 9 Melee . | . . . . . Uniques/NPCs Destroyed . | . . . . . Combat | -11 -10 -10 -9 -9 -------- Run | Yrd Mat Min Mat Min Hostile Shots Fired 239 | . 47 31 100 61 Missed 67 | . 18 6 33 10 Damage Taken 2777 | . 336 320 775 1346 Core 488 | . 52 34 70 332 Absorbed by Shields . | . . . . . Regen/Repaired (Parts) 143 | . . . 143 . Core Remaining (%) 82 | 100 . 65 . . Volleys Fired 204 | 5 68 13 102 16 Largest 2 | 2 2 2 2 2 Hottest 136 | 90 90 70 136 136 Shots Fired 405 | 10 136 23 204 32 Gun 14 | 10 4 . . . Cannon 373 | . 132 13 204 24 Launcher 18 | . . 10 . 8 Special . | . . . . . Kinetic 211 | . 132 13 66 . Thermal 176 | 10 4 . 138 24 Explosive 18 | . . 10 . 8 Electromagnetic . | . . . . . Robot Hit Streak 13 | 7 4 4 13 4 Robot Miss Streak 9 | 1 9 2 8 3 Penetration Max . | . . . . . Secondary Targets . | . . . . . Shots Hit Robots 194 | 7 44 12 118 13 Core Hits 139 | 2 21 19 46 51 Critical Kills . | . . . . . Critical Parts Destroyed . | . . . . . Critical Strikes 7 | 1 2 1 3 . Burn 1 | 1 . . . . Blast 6 | . 2 1 3 . Melee Attacks . | . . . . . Impact . | . . . . . Slashing . | . . . . . Piercing . | . . . . . Sneak Attacks . | . . . . . Combat Hostiles . | . . . . . Follow-up Attacks . | . . . . . Damage Inflicted 5020 | 83 864 547 2412 1114 Guns 83 | 83 . . . . Cannons 3639 | . 864 116 2412 247 Explosions 1298 | . . 431 . 867 Melee . | . . . . . Ramming . | . . . . . Kinetic 1693 | . 864 116 713 . Thermal 2126 | 83 . . 1699 344 Explosive 1201 | . . 431 . 770 Electromagnetic . | . . . . . Impact . | . . . . . Slashing . | . . . . . Piercing . | . . . . . Highest Corruption . | . . . . . Average Corruption . | . . . . . Corruption Purged . | . . . . . Corruption Blocked . | . . . . . Overload Shots . | . . . . . Overflow Damage 18 | . 3 . 8 7 Projectiles 11 | . 3 . 8 . Explosions 7 | . . . . 7 Melee . | . . . . . Knockbacks 10 | . 5 2 3 . Impact . | . . . . . Kinetic 10 | . 5 2 3 . Secondary . | . . . . . Self-Inflicted Damage 155 | . . 41 . 114 Shots 7 | . . 2 . 5 Rammed . | . . . . . Targets Rammed . | . . . . . Kicked . | . . . . . Crushed . | . . . . . Highest Temperature 339 | 72 198 36 312 339 Average Temperature 58 | 37 35 11 68 122 Received Heat Transfer 725 | . 120 111 348 146 Siege Activations . | . . . . . Robots Corrupted . | . . . . . Combat Hostiles . | . . . . . Parts Fried . | . . . . . Impact Corruptions . | . . . . . Robots Melted . | . . . . . Combat Hostiles . | . . . . . Parts Melted 7 | . . . 7 . Heat Transferred 3912 | 297 . . 3071 544 Parts Sabotaged . | . . . . . Parts Stolen . | . . . . . Parts Stripped . | . . . . . Power Chain Reactions . | . . . . . Alert | -11 -10 -10 -9 -9 ------- Run | Yrd Mat Min Mat Min Peak Influence 609 | 5 178 252 609 317 Initial 181 | . 3 22 53 181 Average 173 | 1 33 91 294 272 Maximum Alert Level 2 | . . 1 2 1 Low Security (%) 70 | 100 100 95 45 3 Level 1 8 | . . 4 8 96 Level 2 21 | . . . 45 . Level 3 . | . . . . . Level 4 . | . . . . . Level 5 . | . . . . . High Security . | . . . . . Max Security . | . . . . . Squads Dispatched 13 | . 2 . 11 . Investigation 9 | . 2 . 7 . Extermination . | . . . . . Reinforcement 4 | . . . 4 . Assault . | . . . . . Garrison . | . . . . . Intercept . | . . . . . Searches Triggered . | . . . . . Construction Impeded . | . . . . . Haulers Reinforced . | . . . . . Active Scanning Responses . | . . . . . Cargo Convoy Interrupts . | . . . . . Stealth | -11 -10 -10 -9 -9 --------- Run | Yrd Mat Min Mat Min Distress Signals 5 | . . . 5 . Communications Jammed . | . . . . . Distress Signals . | . . . . . Times Spotted 93 | . 13 11 42 27 Peak Tracking Total 20 | . 6 3 4 20 Tactical Retreats 6 | . 1 . 4 1 Traps | -11 -10 -10 -9 -9 ------- Run | Yrd Mat Min Mat Min Traps Triggered 4 | . 2 . 2 . Indirectly . | . . . . . Trap Hack Attempts . | . . . . . Triggered . | . . . . . Disarmed . | . . . . . Reprogrammed . | . . . . . Reused . | . . . . . Traps Extracted . | . . . . . Installed . | . . . . . Triggered . | . . . . . Machines | -11 -10 -10 -9 -9 ---------- Run | Yrd Mat Min Mat Min Machines Disabled 6 | . 2 1 2 1 Max in Single Turn 1 | . 1 1 1 1 Machines Repaired . | . . . . . Machines Dismantled . | . . . . . Machines Sabotaged . | . . . . . Overloaded Fab Kills . | . . . . . Hacking | -11 -10 -10 -9 -9 --------- Run | Yrd Mat Min Mat Min Machines Accessed 17 | . 5 . 12 . Terminals 11 | . 4 . 7 . Fabricators . | . . . . . Repair Stations 1 | . . . 1 . Recycling Units 3 | . 1 . 2 . Scanalyzers 2 | . . . 2 . Garrison Access . | . . . . . Total Hacks 59 | . 15 . 44 . Successful 36 | . 10 . 26 . Failed 23 | . 5 . 18 . Catastrophic 4 | . 1 . 3 . Database Lockouts . | . . . . . Manual 5 | . . . 5 . Terminals 36 | . 11 . 25 . Fabricators . | . . . . . Repair Stations 4 | . . . 4 . Recycling Units 7 | . 4 . 3 . Scanalyzers 12 | . . . 12 . Garrison Access . | . . . . . Terminal Hacks 18 | . 9 . 9 . Record 1 | . . . 1 . Robot Analysis 1 | . 1 . . . Prototype ID Bank 2 | . 2 . . . Emergency Access Points 1 | . . . 1 . Alert Level 2 | . 2 . . . Unreport Threat 2 | . 1 . 1 . Locate Traps 1 | . . . 1 . Security Status 1 | . 1 . . . Transport Status 1 | . . . 1 . Hauler Manifests 2 | . 1 . 1 . Zone Layout 4 | . 1 . 3 . Fabricator Hacks . | . . . . . Repair Station Hacks 4 | . . . 4 . Scan Component 2 | . . . 2 . Repair 2 | . . . 2 . Recycling Unit Hacks 3 | . 1 . 2 . Report Inventory 3 | . 1 . 2 . Scanalyzer 11 | . . . 11 . Insert Component 6 | . . . 6 . Analyze 5 | . . . 5 . Garrison Access Hacks . | . . . . . Unauthorized Hacks . | . . . . . Terminals . | . . . . . Fabricators . | . . . . . Repair Stations . | . . . . . Recycling Units . | . . . . . Scanalyzers . | . . . . . Garrison Access . | . . . . . Data Cores Recovered . | . . . . . Used . | . . . . . Hacking Detections 14 | . 4 . 10 . Full Trace Events 8 | . 1 . 7 . Feedback Events . | . . . . . Feedback Blocked . | . . . . . Robot Schematics Acquired . | . . . . . Robots Built . | . . . . . Authchips . | . . . . . Time . | . . . . . Total Robot Build Rating . | . . . . . Part Schematics Acquired 4 | . . . 4 . Parts Built . | . . . . . Authchips . | . . . . . Time . | . . . . . Total Part Build Rating . | . . . . . Parts Repaired 2 | . . . 2 . Time 58 | . . . 58 . Parts Recycled . | . . . . . Recycled Matter . | . . . . . Retrieved Matter . | . . . . . Retrieved Components . | . . . . . Parts Scanalyzed 4 | . . . 4 . Part Schematics Acquired 4 | . . . 4 . Parts Damaged . | . . . . . Bothacking | -11 -10 -10 -9 -9 ------------ Run | Yrd Mat Min Mat Min Used RIF Installer . | . . . . . Robots Hacked . | . . . . . Non-combat . | . . . . . Combat . | . . . . . Robot Hacks Applied . | . . . . . Relay Couplers Released . | . . . . . Fabnet Peak Effective % . | . . . . . Robots Rewired . | . . . . . Allies Hacked . | . . . . . Hacks Repelled . | . . . . . Allies | -11 -10 -10 -9 -9 -------- Run | Yrd Mat Min Mat Min Total Allies . | . . . . . Largest Group . | . . . . . Highest-Rated Group . | . . . . . Highest-Rated Ally . | . . . . . Total Orders . | . . . . . Ally Attacks . | . . . . . Total Damage . | . . . . . Kills . | . . . . . Allies Corrupted . | . . . . . Allies Melted . | . . . . . Intel | -11 -10 -10 -9 -9 ------- Run | Yrd Mat Min Mat Min Robot Analysis Total 1 | . 1 . . . Derelict Logs Recovered 2 | . . 2 . . Drone Launches . | . . . . . Drone Recoveries . | . . . . . Exploration | -11 -10 -10 -9 -9 ------------- Run | Yrd Mat Min Mat Min Turns Passed 4775 | 133 1509 690 2277 166 Spaces Moved 2486 | 71 800 401 1146 68 Core 4 | 4 . . . . Treads 2482 | 67 800 401 1146 68 Legs . | . . . . . Wheels . | . . . . . Hover . | . . . . . Flight . | . . . . . Fastest Speed 50 | 50 160 160 160 160 Average Speed 159 | 153 160 160 160 160 Slowest Speed 160 | 160 160 160 160 160 Overloaded Moves . | . . . . . Propulsion Burnouts . | . . . . . Robots Hopped . | . . . . . Cave-ins Triggered . | . . . . . Exploration Rate (%) 52 | 6 77 65 90 23 Regions Visited 4 Branch Regions 2 Pre-discovered Areas . | . . . . . Known Exits Taken 1 | . . . 1 . Unknown Exits Taken 3 | 1 1 1 . . Scrap Searched 1 | . . . . 1 Spaces Dug . | . . . . . Terrain Destroyed 133 | . . 78 . 55 Melee . | . . . . . Projectile . | . . . . . AOE 133 | . . 78 . 55 Terrain Rammed . | . . . . . Walls Destroyed . | . . . . . Machines Disabled . | . . . . . Actions | -11 -10 -10 -9 -9 --------- Run | Yrd Mat Min Mat Min Total 2889 | 82 892 424 1398 93 Wait 85 | . . . 85 . Move 2482 | 70 799 400 1145 68 Hop . | . . . . . Pick Up 26 | 1 12 1 12 . Fast Attach 14 | 6 4 . 4 . Attach 7 | . . . 2 5 Detach . | . . . . . Swap 35 | . 4 8 20 3 Drop 36 | . 5 2 28 1 Fire 204 | 5 68 13 102 16 Melee . | . . . . . Ram . | . . . . . Kick . | . . . . . Crush . | . . . . . Escape Stasis . | . . . . . Rewire . | . . . . . Trap . | . . . . . Miscellaneous . | . . . . . Route ------- -11/Scrapyard -10/Materials (discovered 4 exits: *Mat x2 / [*Min x2]) -10/Mines (discovered 2 exits: *Mat x2) -9/Materials (discovered 4 exits: [*Mat x2] / *Min x2) -9/Mines (discovered 1 exit: [*Mat]) History --------- Turn | Location | Event 7 | -11/Scrapyard | Discovered new exit (range 16) 134 | -11/Scrapyard | Entered Materials 144 | -10/Materials | Discovered new exit (range 16) 313 | -10/Materials | Build established: Mutant 591 | -10/Materials | Discovered new exit (range 16) 891 | -10/Materials | Discovered new exit (range 13) 1026 | -10/Materials | Discovered new exit (range 10) 1643 | -10/Materials | Entered Mines 1673 | -10/Mines | Received a Rocket Launcher from a helpful Derelict 2002 | -10/Mines | Learned location of 1 exit from Materials 2057 | -10/Mines | Learned Materials stockpile data 2068 | -10/Mines | Discovered new exit (range 11) 2097 | -10/Mines | Joined a pair of Derelicts in attacking an 0b10 outpost 2311 | -10/Mines | Discovered new exit (range 8) 2333 | -10/Mines | Entered Materials 2333 | -9/Materials | Evolved 2 slots: Propulsion x2 2334 | -9/Materials | Identified exit to Mines 2872 | -9/Materials | Discovered new exit (range 13) 3009 | -9/Materials | Build established: Scavenger-Mutant 3123 | -9/Materials | Repaired Rocket Launcher 3150 | -9/Materials | Repaired Lgt. Cannon 4076 | -9/Materials | Discovered exit to Mines (range 10) 4218 | -9/Materials | Discovered new exit (range 15) 4610 | -9/Materials | Entered Mines 4637 | -9/Mines | Met a Derelict bent on vengeance 4693 | -9/Mines | Discovered new exit (range 6) 4739 | -9/Mines | Assembled infested the area 4771 | -9/Mines | Core integrity fell below 50% 4774 | -9/Mines | Core integrity fell below 20% 4776 | -9/Mines | Destroyed by D-53 Grenadier with Mini Grenade Launcher Last Messages --------------- 04766_ U-05 Engineer lays Concrete. 04767_ The unstable cave ceiling collapses. 04768_ U-05 Engineer lays Concrete. 04768_ Lgt. Treads destroyed. 04769_ Rocket Launcher destroyed. 04769_ U-05 Engineer lays Concrete. 04770_ The unstable cave ceiling collapses. 04770_ Hvy. Ion Engine destroyed. 04770_ Grenade Launcher destroyed. 04770_ Lgt. Treads destroyed. 04770_ Imp. Heat Sink destroyed. 04771_ U-05 Engineer lays Concrete. 04772_ The unstable cave ceiling collapses. 04772_ U-05 Engineer lays Concrete. 04775_ The unstable cave ceiling collapses. 04775_ U-05 Engineer lays Concrete. 04776_ The unstable cave ceiling collapses. 04776_ U-05 Engineer builds a Wall. 04776_ as-13914 sneak attacks. 04776_ U-05 Engineer destroyed. Map ----- +----------------------------------------------------+ | ???????????????????????????????????????????????? | | ???????????????????????????????????????????????? | | ???????????????????????????????????????????????? | | ???????????????????????????????????????????????? | | ???????????????????????????????????????????????? | | ???????????????????????????????????????????????? | | ???????????????????????????????????????????????? | | ???????????????????????????????????????????????? | | ???????????????????????????????????????????????? | | ???????????????????????????????????????????????? | | ???????????????????????????????????????????????? | | ???????????????????????????????????????????????? | | ??????????????????????????????? #??????????????? | | ???????????????????###????????? #??????????????? | | ??????????????????## ######?? #??????????????? | | ??????????????????# ### ##?????????????? | | ??????????????????? !%= #?????????????? | | ??????????????????? ??????????????? | | ???????????????????? #??????????????? | | ????????????????????? #####??????????? | | ??????????????####???# ! ## ????????? | | ?????????????## ##??# =% ???????? | | ?????????????# #### a ????????? | | ?????????????# ## #???????????? | | ????????????## ## #????????????? | | ????????????# # @ #????????????? | | ???????????## # #????????????? | | ???????????# # ##????????????? | | ???????????# % u d % ##?????????????? | | ???????????## # d ##??????????????? | | ????????????## #### # #?????????????? | | ?????????????# #??# # ##?????????????? | | ?????????????# #??## ## #??????????????? | | ?????????????# #???# # # ? a ?????????????? | | ?????????????# #???########?##### #????????????? | | ?????????????# #????????????????? #????????????? | | ?????????????# #?????????? #?????? ????????????? | | ?????????????# #???????? ????????#???????????? | | ?????????????# #?????? ??????????????????????? | | #########????# #???## ????????????????????????? | | #????#*#?? #??????????????????????? | | #????#%## #???????????????????????? | | #????#[ #????????????????????????? | | #????# ## < #????????????????????????? | | #????# #?? ##????????????????????????? | | ######*## ###?????????????????????????? | | [!%= =%=[ #???????????????????????????? | | %% ############???????????????????????????? | | #??????????????????????????????????????? | | % #??????????????????????????????????????? | +----------------------------------------------------+ Best States ------------- Heat Dissipation 42 Energy Generation 14 Energy Capacity 280 Matter Stores 300 Matter Capacity 300 Sight Range 16 Terrain Scan Density 10 Armor Coverage 150 Evasion (%) 40 Recoil Reduction 4 Item Schematics ----------------- Rocket Launcher | -9/Materials | Scanalyzed Grenade Launcher | -9/Materials | Scanalyzed Lgt. Cannon | -9/Materials | Scanalyzed Ion Engine | -9/Materials | Scanalyzed Robot Schematics ------------------ None Fabricated ------------ Nothing Alien Tech Used ----------------- None Achievements -------------- Hunted Challenges ------------ None Game ------ Seed UltimateAlertPower Manual? 0 Play Time 00:30:45 Cumulative 11.3 hours Start 2024.10.16 @ 13:27:20 End 2024.10.16 @ 13:56:05 Sessions 1 Manual Loads 0 Difficulty Rogue Special Mode None Game No. 21 Rogue 21 Adventurer 0 Explorer 0 Win Type - Total 0 Types 0/0/0/0/0/0/0/0/0 Lore% 4 Gallery% 15 Achievement% 18 Wizard Run 0 Options --------- Layout 0 ASCII 0 Keyboard 0 Movement Arrows Keybinds 0 Fullscreen 1 Font 18/Smallcaps Map View 76x50 Zoom Use 0% Tactical HUD 1 Map Filters NONE Filters NONE Steam 1 RUN: b0c7104c-5ef0-4708-9949-bc40a1a80faf